[Event "Titled Tuesday Blitz February 21 Late 2023"]
[White "Roman, Rodrigo"]
[Black "Oliveira, Tiago Batista"]
[WhiteFideId "3701220"]
[BlackFideId "2108291"]
[WhiteElo "2058"]
[BlackElo "1991"]
[Result "0-1"]
[Round "11"]
[TimeControl "180+2"]
[Date "2023.02.21"]
[WhiteClock "0:02:13"]
[BlackClock "0:01:52"]

1. e4 {[%clk 0:03:00]}  c5 {[%clk 0:02:59]} 2. Nf3 {[%clk 0:03:00]}  Nc6 {[%clk 0:02:59]} 3. d4 {[%clk 0:02:59]}  cxd4 {[%clk 0:02:59]} 4. Nxd4 {[%clk 0:03:00]}  Nf6 {[%clk 0:03:00]} 5. Nc3 {[%clk 0:02:59]}  d6 {[%clk 0:03:00]} 6. Bg5 {[%clk 0:02:57]}  e6 {[%clk 0:03:00]} 7. Qd2 {[%clk 0:02:56]}  Be7 {[%clk 0:03:00]} 8. O-O-O {[%clk 0:02:56]}  Nxd4 {[%clk 0:03:00]} 9. Qxd4 {[%clk 0:02:55]}  O-O {[%clk 0:03:01]} 10. h4 {[%clk 0:02:55]}  Qa5 {[%clk 0:02:59]} 11. f3 {[%clk 0:02:51]}  a6 {[%clk 0:02:37]} 12. Qa4 {[%clk 0:02:50]}  Qc7 {[%clk 0:02:30]} 13. g4 {[%clk 0:02:45]}  Bd7 {[%clk 0:02:28]} 14. Qd4 {[%clk 0:02:45]}  Rfd8 {[%clk 0:02:12]} 15. Bc4 {[%clk 0:02:32]}  b5 {[%clk 0:02:10]} 16. Bb3 {[%clk 0:02:32]}  a5 {[%clk 0:02:00]} 17. a4 {[%clk 0:02:30]}  bxa4 {[%clk 0:01:57]} 18. Nxa4 {[%clk 0:02:30]}  Rab8 {[%clk 0:01:55]} 19. Kb1 {[%clk 0:02:18]}  Rb4 {[%clk 0:01:55]} 20. Qd2 {[%clk 0:02:13]}  Bxa4 {[%clk 0:01:54]} 21. c3 {[%clk 0:02:13]}  Rxb3 {[%clk 0:01:52]} 0-1


[Site "https://www.chess.com"]